bitfinex-derivatives/quotes_ETHF0:USTF0_20250701
["timestamp","ask_amount","ask_price","bid_price","bid_amount"]
[1751347212350,4.02179,2456.4,2456.3,37.63302]
[1751347212555,4.02179,2456.4,2456.3,11.709]
[1751347212757,4.02179,2456.4,2456.3,36.818]
[1751347213949,4.16707159,2456.4,2455.8,1.0615]
[1751347214155,0.81414,2456.0,2455.9,12.48313]
[1751347214461,3.2078,2456.1,2456.0,0.81412]
[1751347215158,11.699822,2456.1,2456.0,0.81412]
[1751347215347,12.513912,2456.1,2456.0,0.81412]
[1751347216262,0.81412,2456.0,2455.9,37.58714]
[1751347216455,0.81412,2456.0,2455.9,11.669]
[1751347216655,2.26252,2456.0,2455.9,11.669]
[1751347216855,2.26252,2456.0,2455.9,36.761]
[1751347217859,1.4484,2456.0,2455.7,0.8142]
[1751347218054,2.26252,2456.0,2455.9,36.768]
[1751347218260,0.81422,2455.7,2455.6,11.67]
[1751347218562,0.81422,2455.7,2455.6,36.762]
[1751347219360,0.81422,2455.7,2455.6,37.57626]
[1751347219762,0.81421,2455.8,2455.7,0.8142]
[1751347219962,0.81421,2455.8,2455.7,25.9112]
[1751347220460,0.81422,2455.7,2455.6,25.1]
[1751347220667,1.95962,2455.7,2455.6,25.1]
[1751347220859,3.27632,2455.7,2455.6,25.1]
[1751347222165,0.81426,2455.6,2455.5,58.624]
[1751347222464,0.81426,2455.6,2455.5,95.403]
[1751347223658,44.07636,2455.7,2455.5,95.403]
[1751347223958,40.8,2455.7,2455.6,0.81426]
[1751347224360,12.514022,2455.8,2455.7,0.81422]
[1751347224661,12.514022,2455.8,2455.7,25.92422]
[1751347224861,53.314022,2455.8,2455.7,25.92422]
[1751347225061,53.314022,2455.8,2455.7,25.11]
[1751347226662,53.314022,2455.8,2455.7,25.92422]
[1751347228263,11.699822,2455.8,2455.7,25.92422]
[1751347228967,12.514012,2455.8,2455.7,25.92422]
[1751347229167,11.699822,2455.8,2455.7,25.92422]
[1751347229565,7.469602,2455.8,2455.7,30.92422]
[1751347229768,5.747902,2455.8,2455.7,30.92422]
[1751347229971,5.747902,2455.8,2455.7,32.25442]
[1751347230270,5.747902,2455.8,2455.7,7.14442]
[1751347230563,5.747902,2455.8,2455.7,43.93042]
[1751347231564,5.747902,2455.8,2455.7,43.92942]
[1751347232067,5.747902,2455.8,2455.7,38.92942]
[1751347232867,5.747902,2455.8,2455.7,39.97472]
[1751347234872,5.747902,2455.8,2455.7,2.3755]
[1751347235170,5.747902,2455.8,2455.7,14.86172]
[1751347235371,5.747902,2455.8,2455.7,39.96372]
[1751347241768,5.747902,2455.8,2455.7,42.298186]
[1751347243366,5.747902,2455.8,2455.7,47.298186]
[1751347244475,4.750482,2455.8,2455.7,47.298186]
[1751347245274,4.750482,2455.8,2455.7,50.298186]
[1751347246284,4.750482,2455.8,2455.7,13.524186]
[1751347246474,4.750482,2455.8,2455.7,45.236186]
[1751347246674,4.750482,2455.8,2455.7,42.236186]
[1751347247276,3.763552,2455.8,2455.7,42.236186]
[1751347247481,2.24283174,2455.8,2455.7,47.236186]
[1751347247678,0.10756174,2455.8,2455.7,47.236186]
[1751347247878,1.74e-06,2455.8,2455.7,47.236186]
[1751347248580,1.74e-06,2455.8,2455.7,50.236186]
[1751347248980,1.74e-06,2455.8,2455.7,52.570652]
[1751347249180,1.0519,2456.5,2456.4,0.81399]
[1751347249483,1.0519,2456.5,2456.4,39.880456]
[1751347249883,1.0519,2456.5,2456.4,40.20677893]
[1751347250182,1.0519,2456.5,2456.4,41.284656]
[1751347250776,3.2078,2456.7,2456.6,0.81393]
[1751347250977,3.2078,2456.7,2456.6,28.221396]
[1751347251177,1.0518,2457.0,2456.6,28.221396]
[1751347251178,1.0369,2456.9,2456.8,0.81386]
[1751347251478,1.99497457,2456.9,2456.8,39.869326]
[1751347251878,1.0369,2456.9,2456.8,39.869326]
[1751347252272,1.0369,2456.9,2456.8,37.53486]
[1751347253285,9.528922,2456.9,2456.8,37.53486]
[1751347254379,9.528922,2456.9,2456.8,0.81386]
[1751347254580,9.528922,2456.9,2456.8,37.52786]
[1751347255186,15.939922,2456.9,2456.7,25.057]
[1751347255379,0.81386,2456.8,2456.7,25.057]
[1751347255585,2.22486,2456.8,2456.7,25.057]
[1751347255773,1.411,2456.8,2456.7,25.057]
[1751347255976,1.411,2456.8,2456.7,25.87089]
[1751347256473,2.22486,2456.8,2456.7,25.057]
[1751347257085,0.81389,2456.7,2456.5,11.649]
[1751347257384,2.24389,2456.7,2456.6,37.57193]
[1751347257784,1.43,2456.7,2456.6,37.57193]
[1751347259387,1.43,2456.7,2456.6,37.56893]
[1751347259689,1.43,2456.7,2456.6,0.81393]
[1751347259888,1.43,2456.7,2456.6,37.55893]
[1751347260189,10.735912,2456.7,2456.6,0.81393]
[1751347260389,10.735912,2456.7,2456.6,37.55593]
[1751347261084,10.735912,2456.7,2456.6,12.46193]
[1751347261287,10.735912,2456.7,2456.6,37.55393]
[1751347261793,9.922022,2456.7,2456.6,37.55393]
[1751347261988,8.492022,2456.7,2456.6,37.55393]
[1751347262385,8.492022,2456.7,2456.6,0.81393]
[1751347262582,8.492022,2456.7,2456.6,25.90093]
[1751347262786,9.305912,2456.7,2456.6,25.90093]
[1751347263085,9.305912,2456.7,2456.6,25.087]
[1751347264095,12.513712,2456.7,2456.6,25.087]
[1751347265102,12.513712,2456.7,2456.5,11.648]
[1751347265103,0.81393,2456.6,2456.5,11.648]
[1751347265400,2.17173,2456.6,2456.5,36.743]
[1751347267603,2.17173,2456.6,2456.5,37.55696]
[1751347268003,0.81393,2456.6,2456.5,37.55696]
[1751347268302,12.513742,2456.7,2456.6,0.81393]
[1751347268506,0.81393,2456.6,2456.5,37.55694]
[1751347268801,12.513732,2456.7,2456.6,0.81393]
[1751347269107,8.492022,2456.7,2456.6,0.81393]
[1751347269301,8.492022,2456.7,2456.6,2.12683]
[1751347269508,8.44767942,2456.7,2456.6,7.12683]
[1751347271400,7.21867942,2456.7,2456.6,7.12683]
[1751347271604,5.71867942,2456.7,2456.6,7.12683]
[1751347271812,5.71867942,2456.7,2456.6,10.12683]
[1751347272308,3.98080942,2456.7,2456.6,10.12683]
[1751347272807,3.83080942,2456.7,2456.6,10.12683]
[1751347273205,3.83080942,2456.7,2456.6,46.84883]
[1751347273404,3.83080942,2456.7,2456.6,46.84783]
[1751347275007,2.58080942,2456.7,2456.6,46.84783]
[1751347277004,2.58080942,2456.7,2456.6,5.12683]
[1751347277208,2.58080942,2456.7,2456.6,41.86183]
[1751347278104,2.58080942,2456.7,2456.6,38.86183]
[1751347281104,2.58080942,2456.7,2456.6,38.84283]
[1751347281812,2.58080942,2456.7,2456.6,2.12683]
[1751347282110,2.58080942,2456.7,2456.6,38.84283]
[1751347284106,2.58080942,2456.7,2456.6,13.78083]
[1751347284412,2.58080942,2456.7,2456.6,38.83383]
[1751347286009,2.58080942,2456.7,2456.6,2.12683]
[1751347286209,2.58080942,2456.7,2456.6,37.52093]
[1751347286915,2.58080942,2456.7,2456.6,0.81393]
[1751347287112,2.58080942,2456.7,2456.6,12.46793]
[1751347287307,2.58080942,2456.7,2456.6,37.52093]
[1751347290516,2.58080942,2456.7,2456.6,37.52193]
[1751347294120,2.58080942,2456.7,2456.6,38.92823]
[1751347302020,2.58080942,2456.7,2456.6,43.92823]
[1751347303423,2.58080942,2456.7,2456.6,38.92823]
[1751347305126,0.81393,2456.6,2456.5,11.643]
[1751347305326,1.1284,2456.6,2456.5,36.692]
[1751347305528,7.5349,2456.6,2456.5,36.692]
[1751347305823,8.34883,2456.6,2456.5,36.692]
[1751347306223,10.683296,2456.6,2456.5,11.643]
[1751347306419,9.869366,2456.6,2456.4,83.683]
[1751347306620,0.81396,2456.5,2456.4,83.683]
[1751347306823,2.19096,2456.5,2456.4,83.683]
[1751347307021,7.19096,2456.5,2456.4,83.683]
[1751347307426,2.19096,2456.5,2456.4,83.683]
[1751347307925,2.19096,2456.5,2456.4,58.634]
[1751347308127,2.19096,2456.5,2456.4,83.685]
[1751347308327,2.19096,2456.5,2456.4,58.634]
[1751347308520,0.81399,2456.4,2456.3,11.644]
[1751347308825,8.69575309,2456.4,2456.3,11.644]
[1751347309019,13.69575309,2456.4,2456.3,11.644]
[1751347309524,13.69575309,2456.4,2456.3,9.9259]
[1751347310325,16.27656251,2456.4,2456.3,9.9259]
[1751347311428,16.27656251,2456.4,2456.3,9.8259]
[1751347311725,15.46257251,2456.4,2456.0,36.697]
[1751347311922,3.2078,2456.1,2456.0,37.51112]
[1751347312123,3.2078,2456.1,2456.0,0.81412]
[1751347312326,3.2078,2456.1,2456.0,38.84732]
[1751347312522,5.78860942,2456.4,2456.2,0.81406]
[1751347312727,5.78860942,2456.4,2456.3,28.200486]
[1751347313634,5.78860942,2456.4,2456.3,29.324286]
[1751347314024,5.78860942,2456.4,2456.3,26.98982]
[1751347314229,5.78860942,2456.4,2456.3,26.1758]
[1751347314429,5.78860942,2456.4,2456.3,26.98982]
[1751347314936,5.78860942,2456.4,2456.3,26.1758]
[1751347315435,6.60259942,2456.4,2456.3,26.1758]
[1751347316038,5.78860942,2456.4,2456.3,26.98982]
[1751347316337,5.78860942,2456.4,2456.3,28.39982]
[1751347317037,6.60259942,2456.4,2456.3,27.5858]
[1751347318129,5.78860942,2456.4,2456.3,28.39982]
[1751347318327,6.60259942,2456.4,2456.3,28.39982]
[1751347318838,6.60259942,2456.4,2456.3,27.5858]
[1751347319535,5.78860942,2456.4,2456.3,27.5858]
[1751347320137,6.60259942,2456.4,2456.3,26.1758]
[1751347320437,5.78860942,2456.4,2456.3,26.98982]
[1751347320735,6.60259942,2456.4,2456.3,1.1238]
[1751347320935,5.78860942,2456.4,2456.3,25.86702]
[1751347321131,5.78860942,2456.4,2456.3,28.201486]
[1751347321132,2.58080942,2456.4,2456.3,28.201486]
[1751347321330,3.2078,2457.4,2456.4,2.03498]
[1751347321526,2.04735939,2457.3,2457.2,0.8137]
[1751347321731,0.96045939,2457.3,2457.2,37.5127]
[1751347322834,0.96045939,2457.3,2457.2,39.847166]
[1751347323738,0.96045939,2457.3,2457.2,37.5127]
[1751347324148,0.96045939,2457.3,2457.2,38.8544]
[1751347324335,9.45248139,2457.3,2457.2,38.85443]
[1751347324629,9.45248139,2457.3,2457.2,37.51273]
[1751347325342,9.45248139,2457.3,2457.2,37.50873]
[1751347326938,9.45248139,2457.3,2457.0,1.1192]
[1751347327145,0.96045939,2457.2,2457.1,11.645]
[1751347327342,2.06445939,2457.2,2457.1,36.695]
[1751347327646,2.06445939,2457.2,2457.1,37.50876]
[1751347328241,1.104,2457.2,2457.1,37.50876]
[1751347328739,1.104,2457.2,2457.1,0.81376]
[1751347328940,1.104,2457.2,2457.1,37.50576]
[1751347329135,8.492022,2457.3,2457.2,0.81373]
[1751347329343,8.492022,2457.3,2457.2,6.67496634]
[1751347329544,8.492022,2457.3,2457.2,7.76946634]
[1751347329733,3.2078,2457.7,2457.6,0.81359]
[1751347329938,3.2078,2457.7,2457.6,37.50459]
[1751347330340,3.2078,2457.7,2457.6,38.82849]
[1751347331042,4.3365,2458.1,2457.6,38.0149]
[1751347331249,4.3365,2458.1,2458.0,0.81346]
[1751347331445,46.0927617,2458.1,2457.9,25.85947]
[1751347331741,45.1365,2458.1,2457.9,25.85849]
[1751347331951,0.9562393,2458.0,2457.9,25.85849]
[1751347332449,1.95315,2458.4,2458.1,0.81341]
[1751347332747,0.81338,2458.3,2458.1,36.688]
[1751347332941,1.1398,2458.4,2458.1,36.688]
[1751347332942,1.95315,2458.4,2458.1,37.50142]
[1751347333351,0.81336,2458.3,2458.1,37.50142]
[1751347333647,41.9398,2458.4,2458.3,0.81336]
[1751347333848,42.75315,2458.4,2458.2,0.81339]
[1751347334037,0.81336,2458.3,2458.1,37.50141]
[1751347334243,41.9398,2458.4,2458.3,0.81336]
[1751347334444,41.9398,2458.4,2458.1,36.688]
[1751347334445,41.9398,2458.4,2458.2,0.81338]
[1751347334647,42.75315,2458.4,2458.1,37.50142]
[1751347334846,42.75315,2458.4,2458.2,0.81339]
[1751347335150,42.75315,2458.4,2458.3,0.81336]
[1751347335548,0.81336,2458.3,2458.2,0.81339]
[1751347335854,1.92716,2458.3,2458.1,37.50141]
[1751347336047,0.8134,2458.2,2458.1,36.688]
[1751347336450,7.0335,2458.2,2457.8,58.607]
[1751347336755,3.2078,2457.9,2457.6,11.639]
[1751347336958,0.81356,2457.7,2457.6,11.639]
[1751347337449,5.81356,2457.7,2457.6,11.639]
[1751347337750,7.19936,2457.7,2457.6,11.639]
[1751347337951,0.81356,2457.7,2457.6,12.45259]
[1751347339148,2.1664,2457.8,2457.7,0.81356]
[1751347339756,1.0934,2457.8,2457.7,0.81356]
[1751347340054,0.81345,2458.1,2457.7,1.4244]
[1751347340250,0.81348,2458.0,2457.7,1.4244]
[1751347340452,0.81348,2458.0,2457.7,2.23794]
[1751347341254,0.8135,2457.9,2457.7,2.23794]
[1751347341455,0.81348,2458.0,2457.7,2.23794]
[1751347341658,6.827,2458.2,2457.7,1.4244]
[1751347341851,0.81348,2458.0,2457.7,2.23795]
[1751347342349,0.8135,2457.9,2457.7,2.23795]
[1751347342856,0.8135,2457.9,2457.7,1.4244]
[1751347343150,8.86052,2458.2,2457.6,40.70039]
[1751347343151,0.81353,2457.8,2457.6,40.70039]
[1751347343456,0.81353,2457.8,2457.6,42.02639]
[1751347343953,0.81356,2457.7,2457.6,41.2128]
[1751347344457,0.81356,2457.7,2457.6,36.679]
[1751347346556,0.81356,2457.7,2457.6,37.49259]
[1751347347161,0.81359,2457.6,2457.5,1.1349]
[1751347347357,0.81359,2457.6,2457.5,36.677]
[1751347347563,0.81359,2457.6,2457.5,11.638]
[1751347347858,1.92769,2457.6,2457.5,11.638]
[1751347348552,0.81366,2457.4,2457.3,39.8848]
[1751347348759,0.81366,2457.4,2457.3,36.677]
[1751347349362,0.81366,2457.4,2457.3,37.49069]
[1751347349765,0.81366,2457.4,2457.3,36.677]
[1751347349971,0.81366,2457.4,2457.3,37.49069]
[1751347350262,0.81366,2457.4,2457.3,36.677]
[1751347351760,0.81366,2457.4,2457.3,37.49069]
[1751347353068,0.81366,2457.4,2457.3,36.677]
[1751347356468,1.7658047,2457.4,2457.3,36.677]
[1751347357063,0.9521447,2457.4,2457.3,37.49069]
[1751347357269,0.81366,2457.4,2457.3,44.36307866]
[1751347358468,0.81364,2457.5,2457.4,0.81364]
[1751347358770,1.76676322,2457.5,2457.4,1.3609]
[1751347359474,1.76676322,2457.5,2457.4,2.17456]
[1751347359775,1.76676322,2457.5,2457.4,1.3609]
[1751347362372,1.76676322,2457.5,2457.4,36.679]
[1751347363470,1.76676322,2457.5,2457.4,37.49266]
[1751347363775,1.76676322,2457.5,2457.4,39.82454866]
[1751347364670,0.95312322,2457.5,2457.4,39.82454866]
[1751347365472,1.76675322,2457.5,2457.4,39.82454866]
[1751347365875,1.76675322,2457.5,2457.4,39.01088866]
[1751347366074,1.76675322,2457.5,2457.4,36.679]
[1751347366275,1.76675322,2457.5,2457.4,38.0955]
[1751347368582,1.76675322,2457.5,2457.4,36.679]
[1751347369179,0.95312322,2457.5,2457.4,37.49266]
[1751347369379,0.95312322,2457.5,2457.4,38.82836]
[1751347369578,0.81363,2457.5,2457.4,38.82836]
[1751347369785,1.76675322,2457.5,2457.4,38.0147]
[1751347370176,1.76675322,2457.5,2457.4,1.3357]
[1751347370480,1.76675322,2457.5,2457.4,36.674]
[1751347371787,1.76675322,2457.5,2457.4,37.48766]
[1751347372082,1.76675322,2457.5,2457.4,38.1173]
[1751347372688,1.76675322,2457.5,2457.4,13.0803]
[1751347372886,1.76675322,2457.5,2457.4,38.1163]
[1751347374290,8.28501188,2457.5,2457.1,58.602]
[1751347374492,0.81373,2457.2,2457.1,58.602]
[1751347374692,0.81373,2457.2,2457.1,83.637]
[1751347374985,1.76685322,2457.2,2457.1,83.637]
[1751347375191,1.76685322,2457.2,2457.1,85.0071]
[1751347375591,1.76685322,2457.2,2457.1,87.33898866]
[1751347376495,1.76685322,2457.2,2457.1,62.30398866]
[1751347376790,0.95312322,2457.2,2457.1,99.79074866]
[1751347380289,40.8,2457.6,2457.3,0.81368]
[1751347380290,0.81365,2457.5,2457.3,0.81368]
[1751347380492,0.81365,2457.5,2457.1,98.97698866]
[1751347380493,0.81365,2457.5,2457.4,29.52614866]
[1751347380797,1.76803077,2457.5,2457.4,28.71248866]
[1751347381095,0.95440077,2457.5,2457.4,29.52614866]
[1751347381494,1.76803077,2457.5,2457.4,29.52614866]
[1751347381893,0.95440077,2457.5,2457.4,29.52614866]
[1751347382094,0.95440077,2457.5,2457.4,34.52614866]
[1751347382490,3.2078,2457.9,2457.4,33.71248866]
[1751347382696,1.76789197,2457.8,2457.7,2.33188866]
[1751347382897,1.76789197,2457.8,2457.7,39.00288866]
[1751347384097,1.76789197,2457.8,2457.7,40.11418866]
[1751347384896,1.76789197,2457.8,2457.7,41.55338866]
[1751347385094,0.95436197,2457.8,2457.7,41.55338866]
[1751347385296,1.76789197,2457.8,2457.7,41.55338866]
[1751347386099,0.95436197,2457.8,2457.7,42.36694866]
[1751347386500,1.76789197,2457.8,2457.7,41.55338866]
[1751347386799,0.95436197,2457.8,2457.7,42.36694866]
[1751347387098,1.76789197,2457.8,2457.7,41.55038866]
[1751347387900,0.95436197,2457.8,2457.7,42.36394866]
[1751347389500,0.95436197,2457.8,2457.7,40.03206]
[1751347389700,0.95436197,2457.8,2457.7,42.36394866]
[1751347390101,1.76789197,2457.8,2457.7,42.36394866]
[1751347390501,1.76789197,2457.8,2457.7,41.55038866]
[1751347391203,0.95436197,2457.8,2457.7,42.36394866]
[1751347391902,1.76789197,2457.8,2457.7,41.55038866]
[1751347392103,1.76789197,2457.8,2457.7,42.36394866]
[1751347392604,1.76789197,2457.8,2457.7,41.55038866]
[1751347392803,1.76789197,2457.8,2457.7,4.88238866]
[1751347392998,0.95436197,2457.8,2457.7,11.637]
[1751347393203,1.76789197,2457.8,2457.7,36.663]
[1751347395400,0.95436197,2457.8,2457.4,1.90114]
[1751347395599,0.81359,2457.6,2457.5,36.662]
[1751347395801,1.76795197,2457.6,2457.5,36.662]
[1751347395998,1.76795197,2457.6,2457.5,37.47563]
[1751347395999,0.81359,2457.6,2457.5,37.47563]
[1751347396199,0.81359,2457.6,2457.5,11.637]
[1751347396397,9.16014548,2457.6,2456.5,11.631]
[1751347396601,3.2078,2456.9,2456.5,26.4227]
[1751347396806,0.81391,2456.7,2456.5,26.4227]
[1751347397008,0.81391,2456.7,2456.5,27.23664]
[1751347397306,0.81393,2456.6,2456.5,27.23664]
[1751347397508,0.81393,2456.6,2456.5,26.4227]
[1751347397903,43.0856,2456.8,2456.4,4.23206866]
[1751347397904,0.81396,2456.5,2456.4,3.41808866]
[1751347398100,0.81399,2456.4,2456.3,3.2078]
[1751347398408,0.81399,2456.4,2456.3,39.8628]
[1751347400307,0.81399,2456.4,2456.3,14.8388]
[1751347401907,1.76405483,2456.4,2456.3,14.8388]
[1751347402409,0.81399,2456.4,2456.3,14.8388]
[1751347402605,0.81394,2456.6,2456.5,0.81394]
[1751347402801,0.81394,2456.6,2456.5,27.35888866]
[1751347403107,0.81394,2456.6,2456.5,25.027]
[1751347403611,0.81396,2456.5,2456.4,2.33188866]
[1751347403804,0.81396,2456.5,2456.4,36.665]
[1751347405209,0.81402,2456.3,2456.2,17.17468866]
[1751347405408,0.81402,2456.3,2456.2,42.20368866]
[1751347406806,0.81402,2456.3,2456.2,43.01774866]
[1751347407008,0.81402,2456.3,2456.2,42.20368866]
[1751347407609,0.814,2456.4,2456.3,0.814]
[1751347407909,0.814,2456.4,2456.3,25.029]
[1751347408110,0.814,2456.4,2456.3,26.4131]
[1751347408510,0.814,2456.4,2456.3,27.22712]
[1751347408706,0.814,2456.4,2456.3,3.71598866]
[1751347408912,0.814,2456.4,2456.3,28.74498866]
[1751347409704,0.814,2456.4,2456.3,26.4131]
[1751347410113,0.814,2456.4,2456.3,1.3841]
[1751347410313,0.814,2456.4,2456.3,38.0501]
[1751347411409,0.81402,2456.3,2456.2,3.2078]
[1751347411612,0.81402,2456.3,2456.2,41.2275]
[1751347413213,0.81402,2456.3,2456.2,4.5615]
[1751347413419,0.81402,2456.3,2456.2,42.04056]
[1751347415520,3.2078,2456.6,2456.2,43.55838866]
[1751347415719,0.81399,2456.5,2456.4,0.81398]
[1751347415921,0.81399,2456.4,2456.3,26.413]
[1751347416418,0.81402,2456.3,2456.2,3.2078]
[1751347416619,0.81402,2456.3,2456.2,40.68686]
[1751347416819,0.81402,2456.3,2456.2,39.8728]
[1751347417019,0.81402,2456.3,2456.2,40.68686]
[1751347417218,0.81402,2456.3,2456.2,42.03766]
[1751347417718,0.81402,2456.3,2456.2,41.2246]
[1751347417918,0.81402,2456.3,2456.2,42.03866]
[1751347418322,5.24262,2456.6,2456.2,41.2246]
[1751347418518,0.81401,2456.4,2456.3,3.14587866]
[1751347418720,0.81401,2456.4,2456.3,4.49667866]
[1751347419119,0.81401,2456.4,2456.3,3.68268866]
[1751347419524,0.81401,2456.4,2456.3,4.49670866]
[1751347421730,0.81397,2456.5,2456.4,0.81396]
[1751347421925,0.81397,2456.5,2456.4,28.38456]
[1751347423624,4.02173,2456.6,2456.5,0.81396]
[1751347423829,4.02173,2456.6,2456.5,2.18276]
[1751347424223,4.02173,2456.6,2456.5,1.3688]
[1751347424726,4.02173,2456.6,2456.5,2.18276]
[1751347424929,4.02173,2456.6,2456.5,1.3688]
[1751347425231,4.97281927,2456.6,2456.5,1.3688]
[1751347426728,4.97281927,2456.6,2456.5,2.18276]
[1751347427132,0.81396,2456.5,2456.4,13.61877]
[1751347427328,3.2078,2456.9,2456.4,40.16168866]
[1751347427531,1.76664337,2456.8,2456.7,3.14574866]
[1751347427732,1.76664337,2456.8,2456.7,25.83886]
[1751347427927,42.56664337,2456.8,2456.7,25.025]
[1751347428129,44.08466203,2456.8,2456.2,5.53968866]
[1751347428322,0.814,2456.4,2456.3,37.46899]
[1751347428730,0.814,2456.4,2456.3,12.44499]
[1751347428924,0.814,2456.4,2456.3,37.46899]
[1751347429735,0.814,2456.4,2456.3,11.631]
[1751347429928,0.814,2456.4,2456.3,36.655]
[1751347431137,0.814,2456.4,2456.3,36.654]
[1751347432833,0.814,2456.4,2456.3,37.46802]
[1751347433239,0.814,2456.4,2456.3,36.654]
[1751347433739,0.814,2456.4,2456.3,37.46802]
[1751347435342,0.814,2456.4,2456.3,36.654]
[1751347438138,0.814,2456.4,2456.3,11.631]
[1751347438334,0.814,2456.4,2456.3,36.65]
[1751347439546,0.81409,2456.1,2456.0,11.631]
[1751347439842,1.76315492,2456.1,2456.0,36.65]
[1751347441444,0.81412,2456.0,2455.9,72.16194]
[1751347441646,1.76318492,2456.0,2455.9,97.17994]
[1751347441949,1.76318492,2456.0,2455.9,99.51182866]
[1751347443451,1.0946,2456.3,2456.0,0.81411]
[1751347443745,5.24282,2456.4,2456.1,30.55768866]
[1751347443746,1.76290561,2456.2,2456.1,30.55768866]
[1751347443944,1.76290561,2456.2,2456.1,28.16397866]
[1751347444150,1.76290561,2456.2,2456.1,31.37177866]
[1751347444646,0.94883561,2456.2,2456.1,31.37177866]
[1751347446449,0.81403,2456.3,2456.2,0.81406]
[1751347446645,0.81401,2456.4,2456.3,0.81402]
[1751347446844,1.76226501,2456.4,2456.3,29.33990866]
[1751347447347,1.76226501,2456.4,2456.3,28.52588866]
[1751347447549,1.76226501,2456.4,2456.3,29.85558866]
[1751347448450,1.76226501,2456.4,2456.3,30.66960866]
[1751347448749,1.76226501,2456.4,2456.3,29.85558866]
[1751347450251,1.76226501,2456.4,2456.3,2.5077]
[1751347450440,1.76226501,2456.4,2456.3,37.823]
[1751347450844,0.81406,2456.2,2456.0,4.56868866]
[1751347451048,0.81406,2456.2,2456.1,36.645]
[1751347451349,0.94812113,2456.2,2456.1,37.45909]
[1751347451545,0.81405,2456.3,2456.1,38.88176]
[1751347451849,0.94810016,2456.2,2456.1,38.88176]
[1751347454049,0.94810016,2456.2,2456.1,38.87976]
[1751347455451,1.76216016,2456.2,2456.1,38.87976]
[1751347457751,0.94810016,2456.2,2456.1,38.87976]
[1751347460347,3.2078,2456.5,2456.4,0.81399]
[1751347460546,4.15631498,2456.5,2456.4,25.82099]
[1751347460950,4.97027498,2456.5,2456.4,28.39929]
[1751347461152,4.15631498,2456.5,2456.4,28.39929]
[1751347463451,4.97027498,2456.5,2456.4,28.39929]
[1751347463753,4.15631498,2456.5,2456.4,28.39929]
[1751347466351,0.94851498,2456.5,2456.4,28.39929]
[1751347466948,0.94851498,2456.5,2456.4,1.1711]
[1751347467157,1.76247498,2456.5,2456.4,25.002]
[1751347467953,0.81402,2456.3,2456.2,3.2078]
[1751347468155,0.81402,2456.3,2456.2,39.8318]
[1751347468353,1.76253498,2456.3,2456.2,36.624]
[1751347469050,0.81406,2456.2,2456.1,4.31685866]
[1751347469352,0.81406,2456.2,2456.1,37.7939]
[1751347469748,0.81409,2456.1,2456.0,0.8141]
[1751347469949,0.81409,2456.1,2456.0,37.4371]
[1751347470654,0.81409,2456.1,2456.0,37.4361]
[1751347471258,0.81408,2456.2,2456.1,0.81408]
[1751347471554,0.81412,2456.0,2455.9,63.77813]
[1751347471854,0.81411,2456.1,2456.0,0.81411]
[1751347472152,0.81412,2456.0,2455.9,63.77814]
[1751347472353,0.81412,2456.0,2455.9,100.39914]
[1751347473356,3.14600866,2456.0,2455.9,58.603]
[1751347473549,0.81416,2455.9,2455.8,11.623]
[1751347473854,4.2455827,2455.9,2455.8,11.623]
[1751347474048,0.81422,2455.7,2455.6,4.02205]
[1751347474247,0.81422,2455.7,2455.6,30.39585]
[1751347474748,0.81422,2455.7,2455.6,32.72773866]
[1751347475056,0.81421,2455.8,2455.6,31.91348866]
[1751347475251,0.81421,2455.8,2455.7,0.81422]
[1751347475555,1.75433165,2455.8,2455.7,1.1479]
[1751347476157,1.75433165,2455.8,2455.7,26.1469]
[1751347478056,1.75433165,2455.8,2455.7,26.96112]
[1751347478265,0.81421,2455.8,2455.7,26.1469]
[1751347478756,0.81421,2455.8,2455.7,26.96112]
[1751347479154,0.81421,2455.8,2455.7,26.1449]
[1751347479356,0.81422,2455.7,2455.6,3.2078]
[1751347479651,0.81422,2455.7,2455.6,28.2048]
[1751347479855,0.81422,2455.7,2455.6,28.2038]
[1751347480252,0.81422,2455.7,2455.6,29.01806]
[1751347480453,0.81422,2455.7,2455.6,28.2038]
[1751347481058,0.81422,2455.7,2455.6,29.01806]
[1751347481358,0.81422,2455.7,2455.6,28.2038]
[1751347481560,0.81426,2455.6,2455.5,13.64277]
[1751347481758,0.81426,2455.6,2455.5,38.63977]
[1751347483658,2.03558,2455.7,2455.3,1.3878]
[1751347483861,0.81432,2455.4,2455.3,13.82712]
[1751347484062,0.81432,2455.4,2455.3,38.82212]
[1751347484559,0.81431,2455.5,2455.4,0.81429]
[1751347484859,0.81431,2455.5,2455.4,2.25359]
[1751347485555,0.81427,2455.6,2455.4,4.58548866]
[1751347485759,0.81427,2455.6,2455.5,26.3979]
[1751347486662,0.81427,2455.6,2455.5,27.21219]
[1751347486866,0.81426,2455.6,2455.5,27.21219]
[1751347487064,0.81426,2455.6,2455.5,27.21217]
[1751347487559,3.2078,2455.8,2455.5,26.3979]
[1751347487761,0.81422,2455.7,2455.6,4.92948866]
[1751347487961,0.81422,2455.7,2455.6,27.5926]
[1751347488465,0.81422,2455.7,2455.6,2.5976]
[1751347488660,0.81422,2455.7,2455.6,27.5916]
[1751347489161,0.81422,2455.7,2455.6,2.5976]
[1751347489466,0.81429,2455.5,2455.4,0.81431]
[1751347489664,0.81429,2455.5,2455.4,37.42431]
[1751347489964,0.81429,2455.5,2455.4,38.73761]
[1751347490465,0.81428,2455.6,2455.5,0.81428]
[1751347490962,0.81428,2455.6,2455.5,2.12758]
[1751347491765,0.81428,2455.6,2455.5,1.3133]
[1751347492365,0.81428,2455.6,2455.5,37.9213]
[1751347492566,0.81428,2455.6,2455.5,38.73559]